bitfinex-derivatives/quotes_BTCF0:USTF0_20241210
["timestamp","ask_amount","ask_price","bid_price","bid_amount"]
[1733803979704,0.002,96349.0,96348.0,0.38072592]
[1733803980396,0.003,96349.0,96348.0,0.38072592]
[1733803981302,0.001,96349.0,96348.0,0.14759959]
[1733803981898,0.001,96349.0,96348.0,0.19297843]
[1733803982099,0.001,96349.0,96348.0,0.42814601]
[1733803982890,0.001,96349.0,96348.0,0.42614601]
[1733803983095,0.001,96349.0,96348.0,0.73394343]
[1733803983793,0.001,96349.0,96348.0,0.73594343]
[1733803984192,0.052866,96349.0,96348.0,0.73594343]
[1733803984395,0.052866,96349.0,96348.0,0.83546454]
[1733803984607,0.052866,96349.0,96348.0,1.01651192]
[1733803984904,0.052866,96349.0,96348.0,1.01951192]
[1733803985105,0.052866,96349.0,96348.0,1.03014827]
[1733803985805,0.052866,96349.0,96348.0,1.0755328]
[1733803986199,0.052866,96349.0,96348.0,1.06189645]
[1733803986509,0.052866,96349.0,96348.0,0.05046605]
[1733803986701,0.051866,96349.0,96348.0,0.04846605]
[1733803987098,0.051866,96349.0,96348.0,0.04746605]
[1733803987303,0.051866,96349.0,96348.0,0.04546605]
[1733803988998,0.051866,96349.0,96348.0,8.721e-05]
[1733803989903,0.051866,96349.0,96348.0,0.00108721]
[1733803990304,0.051866,96349.0,96348.0,0.00308721]
[1733803991296,0.051866,96349.0,96348.0,0.00108721]
[1733803991495,0.051866,96349.0,96348.0,0.00208721]
[1733803991896,0.051866,96349.0,96348.0,0.00108721]
[1733803993392,0.412666,96349.0,96348.0,0.00108721]
[1733803993708,0.413666,96349.0,96348.0,0.00108721]
[1733803994097,0.412666,96349.0,96348.0,0.00108721]
[1733803994295,0.413666,96349.0,96348.0,8.721e-05]
[1733803994601,0.413666,96349.0,96343.0,0.3659728]
[1733803994804,0.051868,96344.0,96343.0,0.3659728]
[1733803995696,0.051868,96344.0,96343.0,0.36606044]
[1733803996706,0.058868,96344.0,96343.0,0.36606044]
[1733803997206,0.064868,96344.0,96343.0,0.36606044]
[1733803998008,0.065868,96344.0,96343.0,0.36606044]
[1733803998508,0.05187,96341.0,96340.0,0.24285661]
[1733803998710,0.051873,96336.0,96335.0,0.17600416]
[1733803998901,0.412673,96336.0,96335.0,0.17600416]
[1733803999407,0.051876,96329.0,96328.0,0.04945749]
[1733803999610,0.051879,96325.0,96324.0,0.31279892]
[1733804000703,0.051879,96325.0,96324.0,0.31291791]
[1733804000910,0.052879,96325.0,96324.0,0.31291791]
[1733804001907,0.053879,96325.0,96324.0,0.31291791]
[1733804005510,0.353879,96325.0,96324.0,0.31291791]
[1733804006303,0.353879,96325.0,96324.0,0.17838414]
[1733804006510,0.051881,96320.0,96319.0,0.53070145]
[1733804006712,0.412681,96320.0,96319.0,0.53018145]
[1733804007511,0.412681,96320.0,96319.0,0.53027463]
[1733804008412,0.415681,96320.0,96319.0,9.318e-05]
[1733804009113,0.420681,96320.0,96319.0,9.318e-05]
[1733804009700,0.421681,96320.0,96319.0,9.318e-05]
[1733804010302,0.417681,96320.0,96319.0,9.318e-05]
[1733804010510,0.420681,96320.0,96319.0,9.318e-05]
[1733804011805,0.415681,96320.0,96319.0,9.318e-05]
[1733804012016,0.418681,96320.0,96319.0,9.318e-05]
[1733804012213,0.425681,96320.0,96319.0,0.00109318]
[1733804012414,0.419681,96320.0,96319.0,0.00109318]
[1733804012614,0.428681,96320.0,96319.0,0.00109318]
[1733804013618,0.051887,96310.0,96309.0,0.00048]
[1733804013918,0.412687,96310.0,96309.0,0.00048]
[1733804014716,0.412687,96310.0,96309.0,5.2e-07]
[1733804015020,0.051892,96301.0,96300.0,0.04286561]
[1733804015227,0.412692,96301.0,96300.0,0.04286561]
[1733804016016,0.412692,96301.0,96300.0,0.03068009]
[1733804016210,0.4322993,96301.0,96300.0,0.03068009]
[1733804017620,0.4402993,96301.0,96300.0,0.03068009]
[1733804018321,0.4392993,96301.0,96300.0,0.03068009]
[1733804021310,0.2196993,96301.0,96300.0,0.03068009]
[1733804022923,0.051889,96306.0,96300.0,0.03068009]
[1733804023252,0.051889,96306.0,96305.0,0.3608]
[1733804023748,0.01042523,96312.0,96305.0,0.3608]
[1733804023929,0.12400073,96320.0,96306.0,0.1404]
[1733804024128,0.051888,96307.0,96306.0,0.1404]
[1733804026041,0.051888,96307.0,96306.0,0.2748]
[1733804026543,0.058888,96307.0,96306.0,0.2758]
[1733804026941,0.058888,96307.0,96306.0,0.4102]
[1733804027137,0.060888,96307.0,96306.0,0.4112]
[1733804027626,0.062888,96307.0,96306.0,0.4112]
[1733804028230,0.060888,96307.0,96306.0,0.4112]
[1733804028434,0.054888,96307.0,96306.0,0.4102]
[1733804028730,0.054888,96307.0,96306.0,0.4112]
[1733804028731,0.061888,96307.0,96306.0,0.4112]
[1733804029030,0.061888,96307.0,96306.0,0.4102]
[1733804029031,0.054888,96307.0,96306.0,0.4102]
[1733804029232,0.063888,96307.0,96306.0,0.4112]
[1733804029634,0.054888,96307.0,96306.0,0.4102]
[1733804029836,0.059888,96307.0,96306.0,0.4102]
[1733804031730,0.059888,96307.0,96306.0,0.4112]
[1733804031731,0.12508757,96307.0,96306.0,0.4112]
[1733804033927,0.12508757,96307.0,96306.0,0.001]
[1733804034527,0.12508757,96307.0,96300.0,0.03068009]
[1733804034528,0.051892,96301.0,96300.0,0.03068009]
[1733804035630,0.061892,96301.0,96300.0,0.03168009]
[1733804036434,0.062892,96301.0,96300.0,0.03168009]
[1733804036738,0.051894,96297.0,96291.0,0.2872]
[1733804037433,0.11509357,96297.0,96291.0,0.2872]
[1733804037832,0.11509357,96297.0,96296.0,0.3609216]
[1733804038345,0.11509357,96297.0,96296.0,0.0001216]
[1733804038727,0.12209357,96297.0,96296.0,0.0011216]
[1733804039331,0.12509357,96297.0,96296.0,0.0011216]
[1733804039532,0.12509357,96297.0,96296.0,0.3619216]
[1733804039733,0.11809357,96297.0,96296.0,0.3609216]
[1733804040035,0.12609357,96297.0,96296.0,0.3619216]
[1733804040240,0.12609357,96297.0,96296.0,0.0011216]
[1733804041143,0.12309357,96297.0,96296.0,0.0011216]
[1733804041338,0.12709357,96297.0,96296.0,0.0011216]
[1733804042042,0.12409357,96297.0,96296.0,0.0011216]
[1733804042236,0.12909357,96297.0,96296.0,0.0011216]
[1733804042743,0.065894,96297.0,96296.0,0.0011216]
[1733804042936,0.065894,96297.0,96296.0,0.04653491]
[1733804043141,0.051891,96303.0,96296.0,0.04653491]
[1733804043338,0.051891,96303.0,96302.0,0.3608]
[1733804043532,0.051891,96303.0,96302.0,0.40621331]
[1733804043731,0.051886,96312.0,96302.0,0.40621331]
[1733804043937,0.051886,96312.0,96311.0,0.3608]
[1733804044229,0.05189,96304.0,96302.0,0.48480073]
[1733804044436,0.05189,96304.0,96302.0,0.37122028]
[1733804044836,0.05189,96304.0,96303.0,0.3608]
[1733804045341,0.21721307,96316.0,96303.0,0.3608]
[1733804045537,0.21721307,96316.0,96315.0,0.3608]
[1733804045732,0.24824351,96323.0,96316.0,9.176e-05]
[1733804046035,0.25903826,96323.0,96322.0,0.3608]
[1733804047537,0.01079475,96323.0,96322.0,0.3608]
[1733804047731,0.05188,96324.0,96322.0,0.3608]
[1733804048134,0.009,96323.0,96322.0,0.3618]
[1733804048843,0.009,96323.0,96322.0,0.61679197]
[1733804049047,0.009,96323.0,96322.0,0.61779197]
[1733804049737,0.009,96323.0,96322.0,0.6621869]
[1733804049945,0.051874,96335.0,96322.0,0.6631869]
[1733804050149,0.051874,96335.0,96334.0,0.3608]
[1733804050442,0.051874,96335.0,96334.0,0.66801703]
[1733804050647,0.051874,96335.0,96334.0,0.3608]
[1733804051341,0.051869,96344.0,96334.0,0.62614219]
[1733804051641,0.051869,96344.0,96343.0,0.3608]
[1733804053248,0.051871,96339.0,96335.0,0.36092415]
[1733804053634,0.051866,96349.0,96338.0,0.3608]
[1733804053842,0.051866,96349.0,96348.0,0.3608]
[1733804054448,0.051861,96357.0,96348.0,0.3608]
[1733804054644,0.051861,96357.0,96356.0,0.3608]
[1733804056834,0.051861,96357.0,96356.0,0.3618]
[1733804057039,0.053861,96357.0,96356.0,0.3618]
[1733804060142,0.053861,96357.0,96356.0,0.001]
[1733804060441,0.05187,96341.0,96339.0,0.01077766]
[1733804060645,0.051872,96337.0,96336.0,0.00155684]
[1733804062141,0.053872,96337.0,96336.0,0.00155684]
[1733804064246,0.053872,96337.0,96321.0,0.3608]
[1733804064247,0.002,96337.0,96321.0,0.3608]
[1733804064447,0.05188,96322.0,96321.0,0.3608]
[1733804065247,0.05188,96322.0,96321.0,0.36087367]
[1733804065950,0.2709,96336.0,96321.0,0.36187367]
[1733804066954,0.001,96322.0,96321.0,0.36187367]
[1733804067146,0.1304,96351.0,96321.0,1.07515121]
[1733804067348,0.2626,96351.0,96340.0,0.12400073]
[1733804068551,0.2656,96351.0,96340.0,0.12400073]
[1733804068750,0.2666,96351.0,96340.0,0.12400073]
[1733804069057,0.2666,96351.0,96338.0,0.3608]
[1733804069553,0.2676,96351.0,96338.0,0.3608]
[1733804070755,0.2656,96351.0,96340.0,0.001]
[1733804071457,0.2656,96351.0,96338.0,0.3608]
[1733804071645,0.2656,96351.0,96338.0,0.60612055]
[1733804071845,0.2646,96351.0,96338.0,0.60612055]
[1733804072157,0.2656,96351.0,96338.0,0.60612055]
[1733804072551,0.2636,96351.0,96340.0,0.24532055]
[1733804072752,0.2646,96351.0,96340.0,0.24532055]
[1733804073546,0.2646,96351.0,96343.0,0.24532055]
[1733804073745,0.2656,96351.0,96343.0,0.24532055]
[1733804074258,0.2656,96351.0,96344.0,0.24532055]
[1733804074453,0.2666,96351.0,96344.0,0.24532055]
[1733804074660,0.2666,96351.0,96346.0,0.24532055]
[1733804075460,0.2666,96351.0,96345.0,0.24532055]
[1733804075952,0.002,96351.0,96348.0,0.24532055]
[1733804076151,0.002,96351.0,96349.0,0.45647097]
[1733804076152,0.005,96351.0,96349.0,0.45647097]
[1733804076348,0.1359,96369.0,96350.0,0.41389117]
[1733804076548,0.1359,96369.0,96364.0,0.24608977]
[1733804077654,0.1359,96369.0,96363.0,0.3608]
[1733804077655,0.1359,96369.0,96363.0,0.60688977]
[1733804077962,0.1379,96369.0,96364.0,0.24708977]
[1733804078757,0.1379,96369.0,96366.0,0.24608977]
[1733804079150,0.005,96369.0,96364.0,0.001]
[1733804079363,0.005,96369.0,96364.0,0.31929498]
[1733804079554,0.005,96369.0,96365.0,0.04538109]
[1733804079764,0.005,96369.0,96366.0,0.04538109]
[1733804079959,0.005,96369.0,96365.0,0.04538109]
[1733804080257,0.005,96369.0,96367.0,0.30761222]
[1733804080459,0.003,96369.0,96368.0,0.04538109]
[1733804081662,0.003,96369.0,96368.0,0.35399331]
[1733804081852,0.00010297,96373.0,96368.0,0.04638109]
[1733804082058,0.00010297,96373.0,96372.0,0.3608]
[1733804082661,0.00010297,96373.0,96372.0,0.40618109]
[1733804083454,0.00010297,96373.0,96372.0,0.65155441]
[1733804083656,0.00010297,96373.0,96372.0,0.40618109]
[1733804084159,0.00010297,96373.0,96372.0,0.6061272]
[1733804084352,0.00010297,96373.0,96372.0,0.3608]
[1733804085465,0.00010297,96373.0,96372.0,0.40618109]
[1733804085860,0.00010297,96373.0,96372.0,0.71379331]
[1733804086063,0.00010297,96373.0,96372.0,0.67665739]
[1733804086562,0.00010297,96373.0,96372.0,0.40718109]
[1733804086867,0.00010297,96373.0,96372.0,0.7137431]
[1733804087255,0.05195597,96373.0,96372.0,0.001]
[1733804087868,0.051856,96367.0,96366.0,7.386e-05]
[1733804088364,0.051856,96367.0,96366.0,8.6e-07]
[1733804088365,0.412656,96367.0,96366.0,8.6e-07]
[1733804088686,0.412656,96367.0,96356.0,0.04538138]
[1733804088857,0.3608,96358.0,96344.0,0.04538715]
[1733804089057,0.12400073,96360.0,96335.0,0.3608]
[1733804089257,0.051872,96338.0,96335.0,0.3608]
[1733804089465,0.12400073,96360.0,96335.0,0.60603543]
[1733804089664,0.051873,96337.0,96336.0,0.00011498]
[1733804089859,0.3608,96359.0,96336.0,0.00011498]
[1733804090058,0.3608,96359.0,96343.0,0.3608]
[1733804090059,0.051867,96346.0,96343.0,0.3608]
[1733804090274,0.051867,96346.0,96344.0,0.001]
[1733804091995,0.3608,96359.0,96343.0,0.3608]
[1733804091996,0.051868,96344.0,96343.0,0.3608]
[1733804093393,0.051865,96351.0,96343.0,0.3608]
[1733804093694,0.1262,96358.0,96346.0,0.24523543]
[1733804093885,0.1262,96358.0,96354.0,0.3608]
[1733804094081,0.01054238,96362.0,96354.0,0.3608]
[1733804094385,0.3608,96367.0,96354.0,0.3608]
[1733804095085,0.37128958,96367.0,96354.0,0.3608]
[1733804096025,0.37228958,96367.0,96355.0,0.24523543]
[1733804096303,0.051862,96356.0,96354.0,0.6066554]
[1733804096598,0.051862,96356.0,96354.0,0.3608]
[1733804098769,0.052862,96356.0,96354.0,0.3608]
[1733804100285,0.06325418,96356.0,96349.0,0.2458554]
[1733804100496,0.051865,96350.0,96349.0,0.2458554]
[1733804100686,0.01139218,96356.0,96346.0,0.2458554]
[1733804100888,0.01139218,96356.0,96343.0,0.40618563]
[1733804101173,0.051866,96348.0,96347.0,0.24597523]
[1733804101791,0.051866,96348.0,96346.0,0.24597523]
[1733804101982,0.1351,96347.0,96346.0,0.24597523]
[1733804102187,0.1351,96347.0,96343.0,0.40618563]
[1733804102188,0.1351,96347.0,96345.0,0.24597523]
[1733804102401,0.051868,96344.0,96342.0,0.24597523]
[1733804102799,0.2639,96346.0,96337.0,0.24597523]
[1733804102995,0.051872,96338.0,96336.0,0.24609021]
[1733804103194,0.051872,96338.0,96336.0,0.00011498]
[1733804104305,0.051873,96336.0,96335.0,0.06909083]
[1733804104491,0.412673,96336.0,96323.0,0.3608]
[1733804104702,0.051879,96324.0,96323.0,0.3608]
[1733804104902,0.12400073,96333.0,96317.0,0.24597523]
[1733804105098,0.12400073,96333.0,96315.0,0.24597523]
[1733804105309,0.051883,96316.0,96315.0,0.24597523]
[1733804105508,0.051883,96316.0,96315.0,0.0001186]
[1733804106198,0.06242535,96316.0,96315.0,0.0001186]
[1733804108277,0.06242535,96316.0,96315.0,0.0011186]
[1733804109069,0.06342535,96316.0,96315.0,0.0001186]
[1733804110375,0.051895,96295.0,96291.0,0.123]
[1733804110685,0.051896,96293.0,96291.0,0.123]
[1733804111182,0.051896,96293.0,96292.0,7.986e-05]
[1733804111678,0.05189,96304.0,96292.0,7.986e-05]
[1733804111880,0.051893,96299.0,96297.0,0.3608]
[1733804112883,0.051889,96307.0,96297.0,0.3608]
[1733804113176,0.01061056,96317.0,96306.0,0.3608]
[1733804113385,0.051883,96317.0,96316.0,0.3608]
[1733804113975,0.051888,96307.0,96306.0,0.3608]
[1733804115481,0.051883,96317.0,96306.0,0.40620718]
[1733804115682,0.3714169,96332.0,96316.0,0.3608]
[1733804115884,0.3714169,96332.0,96317.0,0.1246]
[1733804116182,0.05188,96323.0,96320.0,0.12400073]
[1733804116381,0.3608,96351.0,96322.0,0.3608]
[1733804116685,0.12400073,96360.0,96322.0,0.3608]
[1733804116686,0.2481,96358.0,96342.0,0.3608]
[1733804117190,0.051869,96343.0,96342.0,0.3608]
[1733804117786,0.01034918,96357.0,96342.0,0.3608]
[1733804117985,0.01034918,96357.0,96352.0,0.3608]
[1733804117986,0.051864,96353.0,96352.0,0.3608]
[1733804118789,0.051867,96347.0,96342.0,0.00012207]
[1733804119082,0.051869,96343.0,96342.0,0.00012207]
[1733804120587,0.051869,96343.0,96342.0,0.18458358]
[1733804121581,0.051869,96343.0,96342.0,0.00012207]
[1733804122278,0.051864,96352.0,96342.0,0.3805973]
[1733804122484,0.051864,96352.0,96351.0,0.3608]
[1733804125083,0.052864,96352.0,96351.0,0.3608]
[1733804125683,0.001,96352.0,96351.0,0.3608]
[1733804127296,0.001,96352.0,96351.0,0.54558888]
[1733804127481,0.001,96352.0,96351.0,0.3608]
[1733804127683,0.001,96352.0,96351.0,0.54553609]
[1733804128400,0.13432834,96361.0,96343.0,0.18473609]
[1733804128582,0.051868,96344.0,96342.0,0.00012207]
[1733804128786,0.051868,96344.0,96343.0,0.23009522]
[1733804129093,0.051868,96344.0,96343.0,0.04538735]
[1733804129483,0.051868,96344.0,96343.0,0.23008889]
[1733804129688,0.051868,96344.0,96342.0,0.00012207]
[1733804130390,0.051868,96344.0,96343.0,0.001]
[1733804131197,0.051868,96344.0,96343.0,0.04638958]
[1733804131396,0.051868,96344.0,96343.0,0.001]
[1733804131786,0.051868,96344.0,96342.0,0.00012207]
[1733804132090,0.051868,96344.0,96342.0,0.00112207]
[1733804132686,0.051868,96344.0,96343.0,0.04538988]
[1733804133295,0.051868,96344.0,96343.0,0.001]
[1733804133699,0.051868,96344.0,96343.0,0.04639044]
[1733804134201,0.051868,96344.0,96343.0,0.001]
[1733804134393,0.051868,96344.0,96343.0,0.18555652]
[1733804135102,0.051868,96344.0,96343.0,0.001]
[1733804136203,0.351868,96344.0,96342.0,0.00012207]
[1733804136393,0.12400073,96341.0,96317.0,0.18459475]
[1733804136598,1.5,96343.0,96313.0,0.18459475]
[1733804136599,0.051884,96315.0,96313.0,0.18459475]
[1733804136795,0.051885,96314.0,96312.0,0.54695207]
[1733804137203,0.051885,96314.0,96312.0,0.36235732]
[1733804137505,0.051885,96314.0,96313.0,0.00012815]
[1733804138495,0.051885,96314.0,96313.0,0.04553284]
[1733804138899,0.051885,96314.0,96313.0,0.23055559]
[1733804139094,0.051885,96314.0,96313.0,0.04553284]
[1733804139300,0.051885,96314.0,96313.0,0.00012815]
[1733804142011,0.051892,96301.0,96300.0,0.18502275]
[1733804142304,0.3608,96306.0,96298.0,0.18502275]
[1733804142493,0.2588,96300.0,96295.0,0.18502275]
[1733804142693,0.2588,96300.0,96291.0,0.18502275]
[1733804142896,0.2588,96300.0,96286.0,0.24597523]
[1733804142897,0.051896,96292.0,96290.0,0.18502275]
[1733804143106,0.2588,96300.0,96287.0,0.18502275]
[1733804143107,0.051899,96288.0,96287.0,0.18502275]
[1733804143406,0.051899,96288.0,96287.0,0.04553398]
[1733804144099,0.051899,96288.0,96287.0,0.00011515]
[1733804144895,0.06261583,96288.0,96287.0,0.00011515]
[1733804145097,0.06261583,96288.0,96287.0,0.00511515]
[1733804145795,0.06261583,96288.0,96287.0,0.00011515]
[1733804146407,0.051899,96288.0,96287.0,0.00011515]
[1733804147699,0.4965,96318.0,96287.0,0.23076981]
[1733804147700,0.051894,96297.0,96287.0,0.23076981]
[1733804147900,0.051894,96297.0,96296.0,0.3608]
[1733804148104,0.051889,96307.0,96296.0,0.4062206]
[1733804148406,0.051889,96307.0,96305.0,0.3608]
[1733804149105,0.051889,96307.0,96305.0,0.49]
[1733804149610,0.051889,96307.0,96305.0,0.3608]
[1733804150405,0.3714463,96318.0,96297.0,0.144]
[1733804150406,0.051893,96298.0,96297.0,0.144]
[1733804150615,0.051893,96298.0,96290.0,0.18523406]
[1733804150910,0.051893,96298.0,96296.0,0.3608]
[1733804151111,0.051899,96288.0,96287.0,0.00011515]
[1733804153898,0.051899,96288.0,96287.0,0.00111515]
[1733804154300,0.051899,96288.0,96287.0,0.00011515]
[1733804154505,0.051899,96288.0,96287.0,0.00111515]
[1733804155500,0.051899,96288.0,96287.0,0.00311515]
[1733804157209,0.051899,96288.0,96287.0,0.00211515]
[1733804158206,0.051899,96288.0,96287.0,0.00011515]
[1733804165916,0.053899,96288.0,96287.0,0.00011515]
[1733804166215,0.053899,96288.0,96287.0,1.5e-07]
[1733804169010,0.054899,96288.0,96287.0,1.5e-07]
[1733804169817,0.17889973,96288.0,96287.0,1.5e-07]
[1733804170123,0.66951627,96288.0,96287.0,1.5e-07]
[1733804170319,0.57639973,96288.0,96287.0,1.5e-07]
[1733804170514,0.57639973,96288.0,96287.0,4e-08]
[1733804171019,0.57639973,96288.0,96269.0,0.24597523]
[1733804171020,0.051908,96270.0,96269.0,0.24597523]
[1733804171218,0.051908,96270.0,96249.0,0.0106388]
[1733804171219,0.3608,96272.0,96260.0,0.24628982]
[1733804171422,0.05192,96249.0,96248.0,0.368501]
[1733804171614,0.05192,96249.0,96229.0,0.138]
[1733804171615,0.051929,96233.0,96229.0,0.138]
[1733804171815,0.051929,96232.0,96230.0,0.27050795]
[1733804172124,0.051929,96232.0,96231.0,0.00010651]
[1733804172522,0.045929,96232.0,96231.0,0.00010651]
[1733804173528,0.04355338,96232.0,96231.0,0.00010651]
[1733804173714,0.04455338,96232.0,96231.0,0.00010651]
[1733804174121,0.04360314,96232.0,96231.0,0.00010651]
[1733804174332,0.051934,96222.0,96221.0,0.1366]
[1733804175023,0.045934,96222.0,96221.0,0.1366]
[1733804175224,0.045934,96222.0,96221.0,0.1366902]
[1733804175824,0.051945,96201.0,96200.0,0.1]
[1733804176120,0.412745,96201.0,96200.0,0.0548108]
[1733804176515,0.4123649,96201.0,96200.0,0.0548108]
[1733804176722,0.4123649,96201.0,96200.0,0.05491969]
[1733804176918,0.4123649,96201.0,96200.0,0.06191969]
[1733804176919,0.4133649,96201.0,96200.0,0.06191969]
[1733804177120,0.41321286,96201.0,96200.0,0.06191969]
[1733804177418,0.41321286,96201.0,96200.0,0.02625847]
[1733804177820,0.42367938,96201.0,96200.0,0.02625847]
[1733804178618,0.42367938,96201.0,96200.0,0.01925847]
[1733804178619,0.41321286,96201.0,96200.0,0.01925847]
[1733804178817,0.05241286,96201.0,96200.0,0.01925847]
[1733804179117,0.05241286,96201.0,96200.0,0.02325847]
[1733804179322,0.051941,96210.0,96200.0,0.03393775]
[1733804179514,0.05188018,96210.0,96209.0,0.3608]
[1733804179916,0.3608,96228.0,96209.0,0.3608]
[1733804180117,0.051935,96221.0,96210.0,0.12400073]
[1733804180317,0.051936,96220.0,96210.0,0.12400073]
[1733804180620,0.37117124,96228.0,96209.0,0.3608]
[1733804180821,0.002,96210.0,96209.0,0.3608]
[1733804181317,0.002,96210.0,96200.0,0.01925847]
[1733804181318,0.051945,96201.0,96200.0,0.01925847]
[1733804182026,0.05196,96175.0,96172.0,0.3608]
[1733804182631,0.05196,96175.0,96172.0,0.5]
[1733804182924,0.05196,96175.0,96172.0,0.1392]
[1733804183131,0.05196,96175.0,96174.0,0.00164579]
[1733804183330,0.05296,96175.0,96174.0,0.00764579]
[1733804185124,0.05396,96175.0,96174.0,0.01664579]
[1733804186923,0.05396,96175.0,96174.0,0.01508623]
[1733804187319,0.05396,96175.0,96142.0,0.3608]
[1733804187320,0.002,96175.0,96142.0,0.3608]
[1733804187519,0.002,96175.0,96130.0,0.18665039]
[1733804187520,0.051977,96143.0,96141.0,0.1406]
[1733804188429,0.3608,96142.0,96131.0,0.00156026]
[1733804188634,0.047983,96132.0,96131.0,0.00156026]
[1733804188928,0.3608,96134.0,96111.0,0.3608]
[1733804189130,0.051994,96112.0,96111.0,0.3608]
[1733804189625,0.051994,96112.0,96111.0,0.36091353]
[1733804189831,0.051988,96122.0,96111.0,0.36091353]
[1733804190029,0.051983,96132.0,96131.0,0.001]
[1733804190533,0.001,96142.0,96131.0,0.001]
[1733804190727,0.05198,96138.0,96131.0,0.001]
[1733804190923,0.051981,96136.0,96131.0,0.001]
[1733804191528,0.051981,96136.0,96129.0,0.3608]
[1733804192826,0.004,96136.0,96129.0,0.3608]
[1733804193030,0.3608,96135.0,96120.0,0.3608]
[1733804193230,0.051988,96122.0,96120.0,0.3608]
[1733804194731,0.051991,96116.0,96111.0,0.00011353]
[1733804195323,0.051993,96114.0,96111.0,0.00011353]
[1733804195926,0.01075034,96123.0,96111.0,0.00011353]
[1733804196137,0.051988,96123.0,96116.0,0.3608]
[1733804196346,0.3608,96135.0,96116.0,0.3608]
[1733804196636,0.051991,96117.0,96116.0,0.3608]
[1733804196832,0.3608,96124.0,96111.0,0.00011353]
[1733804197028,0.051986,96127.0,96119.0,0.3608]
[1733804197428,0.37160752,96135.0,96117.0,0.3608]
[1733804197840,0.051987,96125.0,96117.0,0.3608]
[1733804198041,0.01080752,96135.0,96118.0,0.1322]
[1733804198334,0.3608,96143.0,96129.0,0.3608]
[1733804198535,7.517e-05,96145.0,96139.0,0.3608]
[1733804198740,7.517e-05,96145.0,96130.0,0.1349]
[1733804198741,0.051979,96139.0,96130.0,0.1349]
[1733804199135,0.051982,96134.0,96130.0,0.1349]
[1733804199341,0.051983,96132.0,96130.0,0.1349]
[1733804201744,0.053983,96132.0,96130.0,0.1349]
[1733804202437,0.058983,96132.0,96130.0,0.1349]
[1733804202636,0.007,96132.0,96129.0,0.3608]
[1733804202852,0.051984,96130.0,96129.0,0.3608]
[1733804203234,0.051989,96121.0,96120.0,0.3608]
[1733804203844,0.051993,96113.0,96110.0,0.3608]
[1733804205238,0.06243275,96113.0,96110.0,0.3608]
[1733804205442,0.06243275,96113.0,96111.0,0.00211353]
[1733804205940,0.051989,96121.0,96111.0,0.00411353]
[1733804206144,0.3608,96128.0,96111.0,0.00411353]
[1733804206337,0.051986,96126.0,96120.0,0.3608]
[1733804208338,0.01029743,96129.0,96120.0,0.3608]
[1733804208534,0.051982,96135.0,96120.0,0.3608]
[1733804208733,0.051982,96135.0,96121.0,0.1316]
[1733804208939,0.051982,96135.0,96130.0,0.3608]
[1733804209545,0.051977,96143.0,96130.0,0.3608]
[1733804209752,7.517e-05,96145.0,96140.0,0.3608]
[1733804210935,0.051978,96142.0,96140.0,0.3608]
[1733804212241,0.057978,96142.0,96140.0,0.3608]
[1733804214147,0.055978,96142.0,96140.0,0.3608]
[1733804214343,0.053978,96142.0,96140.0,0.3608]
[1733804214545,0.057978,96142.0,96140.0,0.3608]
[1733804215050,0.057978,96142.0,96141.0,0.04545322]
[1733804215438,0.06874182,96142.0,96141.0,0.04545322]
[1733804215640,0.06674182,96142.0,96141.0,0.04545322]
[1733804215950,0.06874182,96142.0,96140.0,0.3608]
[1733804217144,0.06974182,96142.0,96140.0,0.3608]
[1733804217450,0.007,96142.0,96141.0,0.04545322]
[1733804217648,0.002,96142.0,96141.0,0.04545322]
[1733804217859,0.006,96142.0,96141.0,0.04545322]
[1733804218850,0.007,96142.0,96141.0,0.04545322]
[1733804219054,0.007,96142.0,96141.0,0.30242695]
[1733804219246,0.05197,96156.0,96141.0,0.30242695]
[1733804219551,0.05197,96156.0,96155.0,0.3608]
[1733804220051,0.051974,96149.0,96147.0,0.1433]
[1733804220253,0.051974,96149.0,96148.0,0.0454795]
[1733804220841,0.051974,96149.0,96148.0,0.4062795]
[1733804221250,0.058974,96149.0,96148.0,0.4062795]
[1733804221449,0.062974,96149.0,96148.0,0.4062795]
[1733804221646,0.055974,96149.0,96148.0,0.4062795]
[1733804221850,0.063974,96149.0,96148.0,0.4062795]
[1733804222657,0.012,96149.0,96148.0,0.4062795]
[1733804222854,0.12388351,96170.0,96148.0,0.4062795]
[1733804222855,0.09312852,96172.0,96148.0,0.40637369]
[1733804223162,0.051959,96173.0,96171.0,0.3608]
[1733804223360,0.00072,96176.0,96171.0,0.3608]
[1733804223361,0.01044225,96176.0,96172.0,0.0454795]
[1733804223551,0.051958,96177.0,96173.0,0.04559002]
[1733804223965,0.051959,96175.0,96173.0,0.04559002]
[1733804224260,0.051959,96175.0,96173.0,0.00011052]
[1733804224947,0.051959,96175.0,96173.0,0.00111052]
[1733804225154,0.007,96177.0,96173.0,0.00111052]
[1733804225369,0.007,96177.0,96174.0,0.04547095]
[1733804225552,0.007,96177.0,96173.0,0.00111052]
[1733804225553,0.007,96177.0,96175.0,0.04547095]
[1733804225752,0.007,96177.0,96176.0,0.04547095]
[1733804226753,0.051953,96185.0,96176.0,0.04547095]
[1733804226954,0.051953,96185.0,96184.0,0.3608]
[1733804227763,0.06257531,96185.0,96184.0,0.3608]
[1733804227957,0.01062231,96185.0,96184.0,0.3608]
[1733804228155,0.00012771,96196.0,96184.0,0.3608]
[1733804228359,0.00012771,96196.0,96195.0,0.3608]
[1733804228556,0.0104054,96196.0,96195.0,0.3608]
[1733804229348,1.5104054,96196.0,96184.0,0.40727095]
[1733804229552,0.051951,96189.0,96184.0,0.40727095]
[1733804229753,0.051951,96188.0,96184.0,0.40727095]
[1733804229953,0.051951,96188.0,96184.0,0.3618]
[1733804230158,0.051951,96188.0,96184.0,0.3608]
[1733804230552,0.051951,96188.0,96184.0,0.3648]
[1733804231060,0.051951,96188.0,96184.0,0.3638]
[1733804231258,0.051951,96188.0,96185.0,0.04546023]
[1733804231457,1.5104054,96196.0,96186.0,0.04546023]
[1733804231659,1.5104054,96196.0,96184.0,0.3688]
[1733804231660,0.051949,96192.0,96187.0,0.04546023]